Workbook

Sheet INFORME
I2: DEFENSORÍA DEL PUEBLO
I3: INFORME DE EJECUCIÓN PRESUPUESTAL DESAGREGADO ACUMULADO
I4: VIGENCIA ACTUAL
I5: PERÍODO: 01-ENERO-2022 A 31-AGOSTO-2022
A8: DESCRIPCION | M8: APR. VIGENTE | N8: CDP | O8: APR. DISPONIBLE | P8: CDP MODIFICACIÓN | Q8: COMPROMISO | R8: OBLIGACION | S8: ORDEN PAGO | T8: PAGOS | U8: % EJECUCIÓN COMPROMETIDA | V8: %EJECUCIÓN OBLIGADA
A9: A | D9: PRESUPUESTO DE FUNCIONAMIENTO | M9: =+M33+M34+M35 -> 711873322516 | N9: 6.267281968e+11 | O9: 8.514512574e+10 | P9: 0 | Q9: 4.531622566e+11 | R9: 3.532869077e+11 | S9: 3.517370848e+11 | T9: 3.515933244e+11 | U9: =Q9/M9 -> 0.6365771019 | V9: =R9/M9 -> 0.4962777737
A10: B | D10: SERVICIO DE LA DEUDA PÚBLICA | M10: =+M146 -> 247291740 | N10: =+N146 -> 0 | O10: 247291740 | P10: 0 | Q10: 0 | R10: 0 | S10: 0 | T10: 0 | U10: 0 | V10: 0
A11: C | D11: PRESUPUESTO DE INVERSIÓN UNIDAD 25-02-00 | M11: =+M150+M151+M152 -> 60375679763 | N11: =+N150+N151+N152 -> 50185176381 | O11: 10190503382 | P11: 0 | Q11: 34403287133 | R11: 1.968893266e+10 | S11: 1.960376952e+10 | T11: 1.947069836e+10 | U11: 0.5698202864 | V11: 0.3261070142
A12: A+C | D12: TOTAL PRESUPUESTO UNIDAD 25-02-00 | M12: =+M9+M10+M11 -> 772496294019 | N12: =+N9+N10+N11 -> 6.769133732e+11 | O12: 9.558292086e+10 | P12: 0 | Q12: 4.875655437e+11 | R12: 3.729758403e+11 | S12: 3.713408543e+11 | T12: 3.710640228e+11 | U12: 0.6311558353 | V12: 0.4828189381
A13: C | D13: PRESUPUESTO INVERSIÓN SUBUNIDAD 25-02-00-001 | M13: =+M241 -> 14000000000 | N13: =+N241 -> 7751493613 | O13: 6248506387 | P13: 0 | Q13: 4318909185 | R13: 2483690470 | S13: 2468330470 | T13: 2466932468 | U13: 0.3084935132 | V13: 0.1774064622
A14: A+B+C | D14: TOTAL PRESUPUESTO DESAGREGADO | M14: =+M12+M13 -> 786496294019 | N14: =+N12+N13 -> 6.846648668e+11 | O14: 1.018314272e+11 | P14: 0 | Q14: 4.918844529e+11 | R14: 3.754595308e+11 | S14: 3.738091848e+11 | T14: 3.735309552e+11 | U14: 0.6254122958 | V14: 0.4773824539
A15: A+C | D15: APROPIACIÓN BLOQUEADA | M15: 9900099484 | N15: 0 | O15: 0 | P15: 0 | Q15: 0 | R15: 0 | S15: 0 | T15: 0 | U15: 0 | V15: 0
A16: A+B+C | D16: TOTAL PRESUPUESTO DEFENSORÍA DEL PUEBLO | M16: =+M14+M15 -> 796396393503 | N16: =+N14+N15 -> 6.846648668e+11 | O16: 1.018314272e+11 | P16: =+P14+P15 -> 0 | Q16: 4.918844529e+11 | R16: 3.754595308e+11 | S16: 3.738091848e+11 | T16: 3.735309552e+11 | U16: 0.6176377203 | V16: 0.4714480551
A18: DESCRIPCION | M18: APR. VIGENTE | N18: CDP | O18: APR. DISPONIBLE | P18: CDP MODIFICACIÓN | Q18: COMPROMISO | R18: OBLIGACION | S18: ORDEN PAGO | T18: PAGOS | U18: % EJECUCIÓN COMPROMETIDA | V18: %EJECUCIÓN OBLIGADA
A19: A-01 | D19: GASTOS DE PERSONAL | M19: =+M36 -> 237025946000 | N19: =+N36 -> 236845560147 | O19: 180385853 | P19: 0 | Q19: 149014186541 | R19: 149012036208 | S19: 149012036208 | T19: 149012036208 | U19: =Q19/M19 -> 0.6286830157 | V19: =R19/M19 -> 0.6286739436
A20: A-02 | D20: ADQUISICIÓN DE BIENES Y SERVICIOS | M20: =+M63 -> 80345562016 | N20: =+N63 -> 6.890654952e+10 | O20: 1.14390125e+10 | P20: 0 | Q20: 4.991168488e+10 | R20: 2.556928169e+10 | S20: 2.52742463e+10 | T20: 2.515670738e+10 | U20: 0.621212717 | V20: 0.3182413695
A21: A-03 | D21: TRANSFERENCIAS CORRIENTES | M21: =+M116+M117 -> 391939627859 | N21: =+N116+N117 -> 3.202950556e+11 | O21: 7.164457224e+10 | P21: 0 | Q21: 2.535724427e+11 | R21: 1.780421923e+11 | S21: 1.767951596e+11 | T21: 1.767689381e+11 | U21: 0.6469681162 | V21: 0.4542592269
A22: A-08 | D22: GASTOS POR TRIBUTOS, MULTAS, SANCIONES E INTERESES DE MORA | M22: =+M141+M137+M143 -> 2562186641 | N22: =+N141+N137+N143 -> 681031488.3 | O22: 1881155153 | P22: 0 | Q22: 663942445.3 | R22: 663397445.3 | S22: 655642738.8 | T22: 655642738.8 | U22: 0.2591311791 | V22: 0.2589184701
A23: A | D23: TOTAL PRESUPUESTO DE FUNCIONAMIENTO | M23: =SUM(M19:M22) -> 711873322516 | N23: =SUM(N19:N22) -> 6.267281968e+11 | O23: 8.514512574e+10 | P23: 0 | Q23: 4.531622566e+11 | R23: 3.532869077e+11 | S23: 3.517370848e+11 | T23: 3.515933244e+11 | U23: 0.6365771019 | V23: 0.4962777737
A24: B | D24: SERVICIO DE LA DEUDA PÚBLICA | M24: =+M146 -> 247291740 | N24: =+N146 -> 0 | O24: 247291740 | P24: 0 | Q24: 0 | R24: 0 | S24: 0 | T24: 0 | U24: 0 | V24: 0
A25: C-2502 C-2599 | D25: INVERSIÓN UNIDAD 25-02-00 | M25: =+M150+M151+M152 -> 60375679763 | N25: =+N150+N151+N152 -> 50185176381 | O25: 10190503382 | P25: 0 | Q25: 34403287133 | R25: 1.968893266e+10 | S25: 1.960376952e+10 | T25: 1.947069836e+10 | U25: 0.5698202864 | V25: 0.3261070142
A26: C-2599 | D26: INVERSIÓN SUBUNIDAD 25-02-00-001 | M26: =+M241 -> 14000000000 | N26: =+N241 -> 7751493613 | O26: 6248506387 | P26: 0 | Q26: 4318909185 | R26: 2483690470 | S26: 2468330470 | T26: 2466932468 | U26: 0.3084935132 | V26: 0.1774064622
A27: C | D27: TOTAL PRESUPUESTO DE INVERSIÓN | M27: =+M25+M26 -> 74375679763 | N27: =+N25+N26 -> 57936669994 | O27: 16439009769 | P27: 0 | Q27: 38722196318 | R27: 2.217262313e+10 | S27: 2.207209999e+10 | T27: 2.193763083e+10 | U27: 0.520629814 | V27: 0.2981165779
A28: A+B+C | D28: TOTAL EJECUCIÓN PRESUPUESTO DESAGREGADO DEFENSORÍA DEL PUEBLO | M28: =+M23+M24+M27 -> 786496294019 | N28: =+N23+N24+N27 -> 6.846648668e+11 | O28: 1.018314272e+11 | P28: 0 | Q28: 4.918844529e+11 | R28: 3.754595308e+11 | S28: 3.738091848e+11 | T28: 3.735309552e+11 | U28: 0.6254122958 | V28: 0.4773824539
A29: A+C | D29: APROPIACIÓN BLOQUEADA (LEVANTAMIENTO PREVIO CONCEPTO DGPPN) | M29: =+M15 -> 9900099484 | N29: =+N15 -> 0 | O29: 0 | P29: =+P15 -> 0 | Q29: 0 | R29: 0 | S29: 0 | T29: 0 | U29: 0 | V29: 0
A30: A+B+C | D30: TOTAL PRESUPUESTO DEFENSORÍA DEL PUEBLO | M30: =+M28+M29 -> 796396393503 | N30: =+N28+N29 -> 6.846648668e+11 | O30: 1.018314272e+11 | P30: =+P28+P29 -> 0 | Q30: 4.918844529e+11 | R30: 3.754595308e+11 | S30: 3.738091848e+11 | T30: 3.735309552e+11 | U30: 0.6176377203 | V30: 0.4714480551
A32: TIPO | B32: CTA | C32: SUBC | D32: OBJG | E32: ORD | F32: SORD | G32: ITEM | H32: S. ITEM | I32: CONCEPTO | J32: FUENTE | K32: SITUACION | L32: REC. | M32: APR. VIGENTE | N32: CDP | O32: APR. DISPONIBLE | P32: CDP MODIFICACIÓN | Q32: COMPROMISO | R32: OBLIGACION | S32: ORDEN PAGO | T32: PAGOS | U32: % EJECUCIÓN COMPROMETIDA | V32: %EJECUCIÓN OBLIGADA
A33: A | I33: FUNCIONAMIENTO | J33: Nación | K33: CSF | L33: 10 | M33: 556097655516 | N33: 5.331539725e+11 | O33: 2.294368304e+10 | P33: 0 | Q33: 3.972684568e+11 | R33: 2.984018279e+11 | S33: 2.974082229e+11 | T33: 2.972757649e+11 | U33: =+IFERROR(Q33/M33,0) -> 0.7143861386 | V33: =+IFERROR(R33/M33,0) -> 0.5365996871
A34: A | I34: FUNCIONAMIENTO | J34: Nación | K34: SSF | L34: 11 | M34: 1881077000 | N34: 0 | O34: 1881077000 | P34: 0 | Q34: 0 | R34: 0 | S34: 0 | T34: 0 | U34: 0 | V34: 0
A35: A | I35: FUNCIONAMIENTO | J35: Nación | K35: SSF | L35: 16 | M35: 153894590000 | N35: 93574224299 | O35: 60320365701 | P35: 0 | Q35: 55893799801 | R35: 5.488507976e+10 | S35: 5.432886187e+10 | T35: 5.431755953e+10 | U35: 0.3631953521 | V35: 0.3566407354
A36: A | B36: 01 | I36: GASTOS DE PERSONAL | J36: Nación | K36: CSF | L36: 10 | M36: 237025946000 | N36: 236845560147 | O36: 180385853 | P36: 0 | Q36: 149014186541 | R36: 149012036208 | S36: 149012036208 | T36: 149012036208 | U36: 0.6286830157 | V36: 0.6286739436
A37: A | B37: 01 | C37: 01 | I37: PLANTA DE PERSONAL PERMANENTE | J37: Nación | K37: CSF | L37: 10 | M37: 237025946000 | N37: 236845560147 | O37: 180385853 | P37: 0 | Q37: 149014186541 | R37: 149012036208 | S37: 149012036208 | T37: 149012036208 | U37: 0.6286830157 | V37: 0.6286739436
A38: A | B38: 01 | C38: 01 | D38: 01 | I38: SALARIO | J38: Nación | K38: CSF | L38: 10 | M38: 162055267000 | N38: 162055267000 | O38: 0 | P38: 0 | Q38: 103158852566 | R38: 103156702233 | S38: 103156702233 | T38: 103156702233 | U38: 0.6365658733 | V38: 0.6365526042
A39: A | B39: 01 | C39: 01 | D39: 01 | E39: 001 | I39: FACTORES SALARIALES COMUNES | J39: Nación | K39: CSF | L39: 10 | M39: 162055267000 | N39: 162055267000 | O39: 0 | P39: 0 | Q39: 103158852566 | R39: 103156702233 | S39: 103156702233 | T39: 103156702233 | U39: 0.6365658733 | V39: 0.6365526042
A40: A | B40: 01 | C40: 01 | D40: 01 | E40: 001 | F40: 001 | I40: SUELDO BÁSICO | J40: Nación | K40: CSF | L40: 10 | M40: 125655267000 | N40: 125655267000 | O40: 0 | P40: 0 | Q40: 86551977175 | R40: 86549826842 | S40: 86549826842 | T40: 86549826842 | U40: 0.6888050079 | V40: 0.6887878949
A41: A | B41: 01 | C41: 01 | D41: 01 | E41: 001 | F41: 002 | I41: GASTOS DE REPRESENTACIÓN | J41: Nación | K41: CSF | L41: 10 | M41: 4700000000 | N41: 4700000000 | O41: 0 | P41: 0 | Q41: 3202049459 | R41: 3202049459 | S41: 3202049459 | T41: 3202049459 | U41: 0.6812871189 | V41: 0.6812871189
A42: A | B42: 01 | C42: 01 | D42: 01 | E42: 001 | F42: 006 | I42: PRIMA DE SERVICIO | J42: Nación | K42: CSF | L42: 10 | M42: 6500000000 | N42: 6500000000 | O42: 0 | P42: 0 | Q42: 6145690464 | R42: 6145690464 | S42: 6145690464 | T42: 6145690464 | U42: 0.9454908406 | V42: 0.9454908406
A43: A | B43: 01 | C43: 01 | D43: 01 | E43: 001 | F43: 007 | I43: BONIFICACIÓN POR SERVICIOS PRESTADOS | J43: Nación | K43: CSF | L43: 10 | M43: 4500000000 | N43: 4500000000 | O43: 0 | P43: 0 | Q43: 2916125192 | R43: 2916125192 | S43: 2916125192 | T43: 2916125192 | U43: 0.6480278204 | V43: 0.6480278204
A44: A | B44: 01 | C44: 01 | D44: 01 | E44: 001 | F44: 008 | I44: HORAS EXTRAS, DOMINICALES, FESTIVOS Y RECARGOS | J44: Nación | K44: CSF | L44: 10 | M44: 700000000 | N44: 700000000 | O44: 0 | P44: 0 | Q44: 292116048 | R44: 292116048 | S44: 292116048 | T44: 292116048 | U44: 0.41730864 | V44: 0.41730864
A45: A | B45: 01 | C45: 01 | D45: 01 | E45: 001 | F45: 009 | I45: PRIMA DE NAVIDAD | J45: Nación | K45: CSF | L45: 10 | M45: 13500000000 | N45: 13500000000 | O45: 0 | P45: 0 | Q45: 86846299 | R45: 86846299 | S45: 86846299 | T45: 86846299 | U45: 0.006433059185 | V45: 0.006433059185
A46: A | B46: 01 | C46: 01 | D46: 01 | E46: 001 | F46: 010 | I46: PRIMA DE VACACIONES | J46: Nación | K46: CSF | L46: 10 | M46: 6500000000 | N46: 6500000000 | O46: 0 | P46: 0 | Q46: 3964047929 | R46: 3964047929 | S46: 3964047929 | T46: 3964047929 | U46: 0.6098535275 | V46: 0.6098535275
A47: A | B47: 01 | C47: 01 | D47: 02 | I47: CONTRIBUCIONES INHERENTES A LA NÓMINA | J47: Nación | K47: CSF | L47: 10 | M47: 60258109000 | N47: 60077723147 | O47: 180385853 | P47: 0 | Q47: 36595663826 | R47: 36595663826 | S47: 36595663826 | T47: 36595663826 | U47: 0.6073151719 | V47: 0.6073151719
A48: A | B48: 01 | C48: 01 | D48: 02 | E48: 001 | I48: APORTES A LA SEGURIDAD SOCIAL EN PENSIONES | J48: Nación | K48: CSF | L48: 10 | M48: 17100000000 | N48: 16919839573 | O48: 180160427 | P48: 0 | Q48: 12229451835 | R48: 12229451835 | S48: 12229451835 | T48: 12229451835 | U48: 0.7151726219 | V48: 0.7151726219
A49: A | B49: 01 | C49: 01 | D49: 02 | E49: 002 | I49: APORTES A LA SEGURIDAD SOCIAL EN SALUD | J49: Nación | K49: CSF | L49: 10 | M49: 12100000000 | N49: 12099881905 | O49: 118095 | P49: 0 | Q49: 8661112006 | R49: 8661112006 | S49: 8661112006 | T49: 8661112006 | U49: 0.7157943807 | V49: 0.7157943807
A50: A | B50: 01 | C50: 01 | D50: 02 | E50: 003 | I50: AUXILIO DE CESANTÍAS | J50: Nación | K50: CSF | L50: 10 | M50: 14158109000 | N50: 14158100347 | O50: 8653 | P50: 0 | Q50: 4822219885 | R50: 4822219885 | S50: 4822219885 | T50: 4822219885 | U50: 0.340597737 | V50: 0.340597737
A51: A | B51: 01 | C51: 01 | D51: 02 | E51: 004 | I51: APORTES A CAJAS DE COMPENSACIÓN FAMILIAR | J51: Nación | K51: CSF | L51: 10 | M51: 6800000000 | N51: 6799958417 | O51: 41583 | P51: 0 | Q51: 4382419400 | R51: 4382419400 | S51: 4382419400 | T51: 4382419400 | U51: 0.6444734412 | V51: 0.6444734412
A52: A | B52: 01 | C52: 01 | D52: 02 | E52: 005 | I52: APORTES GENERALES AL SISTEMA DE RIESGOS LABORALES | J52: Nación | K52: CSF | L52: 10 | M52: 1700000000 | N52: 1699995017 | O52: 4983 | P52: 0 | Q52: 1020378600 | R52: 1020378600 | S52: 1020378600 | T52: 1020378600 | U52: 0.6002227059 | V52: 0.6002227059
A53: A | B53: 01 | C53: 01 | D53: 02 | E53: 006 | I53: APORTES AL ICBF | J53: Nación | K53: CSF | L53: 10 | M53: 5000000000 | N53: 4999968785 | O53: 31215 | P53: 0 | Q53: 3287045700 | R53: 3287045700 | S53: 3287045700 | T53: 3287045700 | U53: 0.65740914 | V53: 0.65740914
A54: A | B54: 01 | C54: 01 | D54: 02 | E54: 007 | I54: APORTES AL SENA | J54: Nación | K54: CSF | L54: 10 | M54: 850000000 | N54: 849994769 | O54: 5231 | P54: 0 | Q54: 548414000 | R54: 548414000 | S54: 548414000 | T54: 548414000 | U54: 0.6451929412 | V54: 0.6451929412
A55: A | B55: 01 | C55: 01 | D55: 02 | E55: 008 | I55: APORTES A LA ESAP | J55: Nación | K55: CSF | L55: 10 | M55: 850000000 | N55: 849994769 | O55: 5231 | P55: 0 | Q55: 548414000 | R55: 548414000 | S55: 548414000 | T55: 548414000 | U55: 0.6451929412 | V55: 0.6451929412
A56: A | B56: 01 | C56: 01 | D56: 02 | E56: 009 | I56: APORTES A ESCUELAS INDUSTRIALES E INSTITUTOS TÉCNICOS | J56: Nación | K56: CSF | L56: 10 | M56: 1700000000 | N56: 1699989565 | O56: 10435 | P56: 0 | Q56: 1096208400 | R56: 1096208400 | S56: 1096208400 | T56: 1096208400 | U56: 0.6448284706 | V56: 0.6448284706
A57: A | B57: 01 | C57: 01 | D57: 03 | I57: REMUNERACIONES NO CONSTITUTIVAS DE FACTOR SALARIAL | J57: Nación | K57: CSF | L57: 10 | M57: 14712570000 | N57: 14712570000 | O57: 0 | P57: 0 | Q57: 9259670149 | R57: 9259670149 | S57: 9259670149 | T57: 9259670149 | U57: 0.6293713572 | V57: 0.6293713572
A58: A | B58: 01 | C58: 01 | D58: 03 | E58: 001 | I58: PRESTACIONES SOCIALES SEGÚN DEFINICIÓN LEGAL | J58: Nación | K58: CSF | L58: 10 | M58: 9412570000 | N58: 9412570000 | O58: 0 | P58: 0 | Q58: 5834712503 | R58: 5834712503 | S58: 5834712503 | T58: 5834712503 | U58: 0.6198851645 | V58: 0.6198851645
A59: A | B59: 01 | C59: 01 | D59: 03 | E59: 001 | F59: 001 | I59: VACACIONES | J59: Nación | K59: CSF | L59: 10 | M59: 8602570000 | N59: 8602570000 | O59: 0 | P59: 0 | Q59: 5515912997 | R59: 5515912997 | S59: 5515912997 | T59: 5515912997 | U59: 0.6411936197 | V59: 0.6411936197
A60: A | B60: 01 | C60: 01 | D60: 03 | E60: 001 | F60: 002 | I60: INDEMNIZACIÓN POR VACACIONES | J60: Nación | K60: CSF | L60: 10 | M60: 810000000 | N60: 810000000 | O60: 0 | P60: 0 | Q60: 318799506 | R60: 318799506 | S60: 318799506 | T60: 318799506 | U60: 0.393579637 | V60: 0.393579637
A61: A | B61: 01 | C61: 01 | D61: 03 | E61: 002 | I61: PRIMA TÉCNICA NO SALARIAL | J61: Nación | K61: CSF | L61: 10 | M61: 2200000000 | N61: 2200000000 | O61: 0 | P61: 0 | Q61: 1383135339 | R61: 1383135339 | S61: 1383135339 | T61: 1383135339 | U61: 0.6286978814 | V61: 0.6286978814
A62: A | B62: 01 | C62: 01 | D62: 03 | E62: 082 | I62: PRIMA ESPECIAL DE SERVICIOS | J62: Nación | K62: CSF | L62: 10 | M62: 3100000000 | N62: 3100000000 | O62: 0 | P62: 0 | Q62: 2041822307 | R62: 2041822307 | S62: 2041822307 | T62: 2041822307 | U62: 0.6586523571 | V62: 0.6586523571
A63: A | B63: 02 | I63: ADQUISICIÓN DE BIENES Y SERVICIOS | J63: Nación | K63: CSF | L63: 10 | M63: 80345562016 | N63: 6.890654952e+10 | O63: 1.14390125e+10 | P63: 0 | Q63: 4.991168488e+10 | R63: 2.556928169e+10 | S63: 2.52742463e+10 | T63: 2.515670738e+10 | U63: 0.621212717 | V63: 0.3182413695
A64: A | B64: 02 | C64: 01 | I64: ADQUISICIÓN DE ACTIVOS NO FINANCIEROS | J64: Nación | K64: CSF | L64: 10 | M64: 12145000000 | N64: 5136938605 | O64: 7008061395 | P64: 0 | Q64: 2893234679 | R64: 46419364 | S64: 46419364 | T64: 46419364 | U64: 0.2382243457 | V64: 0.003822096665
A65: A | B65: 02 | C65: 01 | D65: 01 | I65: ACTIVOS FIJOS | J65: Nación | K65: CSF | L65: 10 | M65: 12145000000 | N65: 5136938605 | O65: 7008061395 | P65: 0 | Q65: 2893234679 | R65: 46419364 | S65: 46419364 | T65: 46419364 | U65: =+IFERROR(Q65/M65,0) -> 0.2382243457 | V65: =+IFERROR(R65/M65,0) -> 0.003822096665
A66: A | B66: 02 | C66: 01 | D66: 01 | E66: 004 | I66: MAQUINARIA Y EQUIPO | J66: Nación | K66: CSF | L66: 10 | M66: 12025000000 | N66: 5016938605 | O66: 7008061395 | P66: 0 | Q66: 2773234679 | R66: 0 | S66: 0 | T66: 0 | U66: 0.2306224265 | V66: 0
A67: A | B67: 02 | C67: 01 | D67: 01 | E67: 004 | F67: 007 | I67: EQUIPO Y APARATOS DE RADIO, TELEVISIÓN Y COMUNICACIONES | J67: Nación | K67: CSF | L67: 10 | M67: 1915000000 | N67: 1906938605 | O67: 8061395 | P67: 0 | Q67: 32938605 | R67: 0 | S67: 0 | T67: 0 | U67: 0.01720031593 | V67: 0
A68: A | B68: 02 | C68: 01 | D68: 01 | E68: 004 | F68: 008 | I68: APARATOS MÉDICOS, INSTRUMENTOS ÓPTICOS Y DE PRECISIÓN, RELOJES | J68: Nación | K68: CSF | L68: 10 | M68: 110000000 | N68: 110000000 | O68: 0 | P68: 0 | Q68: 0 | R68: 0 | S68: 0 | T68: 0 | U68: 0 | V68: 0
A69: A | B69: 02 | C69: 01 | D69: 01 | E69: 004 | F69: 009 | I69: EQUIPO DE TRANSPORTE | J69: Nación | K69: CSF | L69: 10 | M69: 10000000000 | N69: 3000000000 | O69: 7000000000 | P69: 0 | Q69: 2740296074 | R69: 0 | S69: 0 | T69: 0 | U69: 0.2740296074 | V69: 0
A70: A | B70: 02 | C70: 01 | D70: 01 | E70: 006 | I70: OTROS ACTIVOS FIJOS | J70: Nación | K70: CSF | L70: 10 | M70: 120000000 | N70: 120000000 | O70: 0 | P70: 0 | Q70: 120000000 | R70: 46419364 | S70: 46419364 | T70: 46419364 | U70: 1 | V70: 0.3868280333
A71: A | B71: 02 | C71: 01 | D71: 01 | E71: 006 | F71: 002 | I71: PRODUCTOS DE LA PROPIEDAD INTELECTUAL | J71: Nación | K71: CSF | L71: 10 | M71: 120000000 | N71: 120000000 | O71: 0 | P71: 0 | Q71: 120000000 | R71: 46419364 | S71: 46419364 | T71: 46419364 | U71: 1 | V71: 0.3868280333
A72: A | B72: 02 | C72: 02 | I72: ADQUISICIONES DIFERENTES DE ACTIVOS | J72: Nación | K72: CSF | L72: 10 | M72: 68200562016 | N72: 6.376961091e+10 | O72: 4430951103 | P72: 0 | Q72: 4.70184502e+10 | R72: 2.552286232e+10 | S72: 2.522782693e+10 | T72: 2.511028802e+10 | U72: 0.6894144097 | V72: 0.374232434
A73: A | B73: 02 | C73: 02 | D73: 01 | I73: MATERIALES Y SUMINISTROS | J73: Nación | K73: CSF | L73: 10 | M73: 6880871797 | N73: 5551376889 | O73: 1329494908 | P73: 0 | Q73: 3269333780 | R73: 2746011969 | S73: 2744162573 | T73: 2740744872 | U73: 0.475133657 | V73: 0.3990790775
A74: A | B74: 02 | C74: 02 | D74: 01 | E74: 002 | I74: PRODUCTOS ALIMENTICIOS, BEBIDAS Y TABACO; TEXTILES, PRENDAS DE VESTIR Y PRODUCTOS DE CUERO | J74: Nación | K74: CSF | L74: 10 | M74: 113860000 | N74: 112734547 | O74: 1125453 | P74: 0 | Q74: 112184547 | R74: 39449985 | S74: 39449985 | T74: 39449985 | U74: 0.9852849728 | V74: 0.3464779993
A75: A | B75: 02 | C75: 02 | D75: 01 | E75: 002 | F75: 003 | I75: PRODUCTOS DE MOLINERÍA, ALMIDONES Y PRODUCTOS DERIVADOS DEL ALMIDÓN; OTROS PRODUCTOS ALIMENTICIOS | J75: Nación | K75: CSF | L75: 10 | M75: 50000000 | N75: 49794285 | O75: 205715 | P75: 0 | Q75: 49244285 | R75: 39179285 | S75: 39179285 | T75: 39179285 | U75: 0.9848857 | V75: 0.7835857
A76: A | B76: 02 | C76: 02 | D76: 01 | E76: 002 | F76: 007 | I76: ARTÍCULOS TEXTILES (EXCEPTO PRENDAS DE VESTIR) | J76: Nación | K76: CSF | L76: 10 | M76: 390700 | N76: 270700 | O76: 120000 | P76: 0 | Q76: 270700 | R76: 270700 | S76: 270700 | T76: 270700 | U76: 0.6928589711 | V76: 0.6928589711
A77: A | B77: 02 | C77: 02 | D77: 01 | E77: 002 | F77: 008 | I77: DOTACIÓN (PRENDAS DE VESTIR Y CALZADO) | J77: Nación | K77: CSF | L77: 10 | M77: 63469300 | N77: 62669562 | O77: 799738 | P77: 0 | Q77: 62669562 | R77: 0 | S77: 0 | T77: 0 | U77: 0.9873996089 | V77: 0
A78: A | B78: 02 | C78: 02 | D78: 01 | E78: 003 | I78: OTROS BIENES TRANSPORTABLES (EXCEPTO PRODUCTOS METÁLICOS, MAQUINARIA Y EQUIPO) | J78: Nación | K78: CSF | L78: 10 | M78: 1747028165 | N78: 1722906355 | O78: 24121810.42 | P78: 0 | Q78: 550965878.7 | R78: 240250136.5 | S78: 238400740.5 | T78: 234983039.5 | U78: 0.315373209 | V78: 0.1375193264
A79: A | B79: 02 | C79: 02 | D79: 01 | E79: 003 | F79: 002 | I79: PASTA O PULPA, PAPEL Y PRODUCTOS DE PAPEL; IMPRESOS Y ARTÍCULOS RELACIONADOS | J79: Nación | K79: CSF | L79: 10 | M79: 128750000 | N79: 128671674 | O79: 78326 | P79: 0 | Q79: 101842897 | R79: 23680824 | S79: 23680824 | T79: 23680824 | U79: 0.7910127922 | V79: 0.1839287301
A80: A | B80: 02 | C80: 02 | D80: 01 | E80: 003 | F80: 003 | I80: PRODUCTOS DE HORNOS DE COQUE; PRODUCTOS DE REFINACIÓN DE PETRÓLEO Y COMBUSTIBLE NUCLEAR | J80: Nación | K80: CSF | L80: 10 | M80: 334383165 | N80: 331719786.6 | O80: 2663378.42 | P80: 0 | Q80: 281719786.6 | R80: 123359822.6 | S80: 121510426.6 | T80: 118092725.6 | U80: 0.8425058916 | V80: 0.3689175637
A81: A | B81: 02 | C81: 02 | D81: 01 | E81: 003 | F81: 005 | I81: OTROS PRODUCTOS QUÍMICOS; FIBRAS ARTIFICIALES (O FIBRAS INDUSTRIALES HECHAS POR EL HOMBRE) | J81: Nación | K81: CSF | L81: 10 | M81: 29900000 | N81: 13887450 | O81: 16012550 | P81: 0 | Q81: 13887450 | R81: 13887450 | S81: 13887450 | T81: 13887450 | U81: 0.4644632107 | V81: 0.4644632107
A82: A | B82: 02 | C82: 02 | D82: 01 | E82: 003 | F82: 006 | I82: PRODUCTOS DE CAUCHO Y PLÁSTICO | J82: Nación | K82: CSF | L82: 10 | M82: 5140000 | N82: 1050000 | O82: 4090000 | P82: 0 | Q82: 1050000 | R82: 1050000 | S82: 1050000 | T82: 1050000 | U82: 0.2042801556 | V82: 0.2042801556
A83: A | B83: 02 | C83: 02 | D83: 01 | E83: 003 | F83: 007 | I83: VIDRIO Y PRODUCTOS DE VIDRIO Y OTROS PRODUCTOS NO METÁLICOS N.C.P. | J83: Nación | K83: CSF | L83: 10 | M83: 16000000 | N83: 15000000 | O83: 1000000 | P83: 0 | Q83: 0 | R83: 0 | S83: 0 | T83: 0 | U83: 0 | V83: 0
A84: A | B84: 02 | C84: 02 | D84: 01 | E84: 003 | F84: 008 | I84: OTROS BIENES TRANSPORTABLES N.C.P. | J84: Nación | K84: CSF | L84: 10 | M84: 1232855000 | N84: 1232577444 | O84: 277556 | P84: 0 | Q84: 152465745.1 | R84: 78272039.91 | S84: 78272039.91 | T84: 78272039.91 | U84: 0.1236688379 | V84: 0.06348843936
A85: A | B85: 02 | C85: 02 | D85: 01 | E85: 004 | I85: PRODUCTOS METÁLICOS Y PAQUETES DE SOFTWARE | J85: Nación | K85: CSF | L85: 10 | M85: 5019983632 | N85: 3715735987 | O85: 1304247645 | P85: 0 | Q85: 2606183354 | R85: 2466311847 | S85: 2466311847 | T85: 2466311847 | U85: 0.5191617235 | V85: 0.4912987827
A86: A | B86: 02 | C86: 02 | D86: 01 | E86: 004 | F86: 004 | I86: MAQUINARIA PARA USOS ESPECIALES | J86: Nación | K86: CSF | L86: 10 | M86: 52145000 | N86: 37915613 | O86: 14229387 | P86: 0 | Q86: 0 | R86: 0 | S86: 0 | T86: 0 | U86: 0 | V86: 0
A87: A | B87: 02 | C87: 02 | D87: 01 | E87: 004 | F87: 005 | I87: MAQUINARIA DE OFICINA, CONTABILIDAD E INFORMÁTICA | J87: Nación | K87: CSF | L87: 10 | M87: 1541965714 | N87: 308469456 | O87: 1233496258 | P87: 0 | Q87: 8469456 | R87: 6655455 | S87: 6655455 | T87: 6655455 | U87: 0.005492635746 | V87: 0.004316214647
A88: A | B88: 02 | C88: 02 | D88: 01 | E88: 004 | F88: 006 | I88: MAQUINARIA Y APARATOS ELÉCTRICOS | J88: Nación | K88: CSF | L88: 10 | M88: 4000000 | N88: 0 | O88: 4000000 | P88: 0 | Q88: 0 | R88: 0 | S88: 0 | T88: 0 | U88: 0 | V88: 0
A89: A | B89: 02 | C89: 02 | D89: 01 | E89: 004 | F89: 007 | I89: EQUIPO Y APARATOS DE RADIO, TELEVISIÓN Y COMUNICACIONES | J89: Nación | K89: CSF | L89: 10 | M89: 3376950918 | N89: 3369350918 | O89: 7600000 | P89: 0 | Q89: 2597713898 | R89: 2459656392 | S89: 2459656392 | T89: 2459656392 | U89: 0.7692483431 | V89: 0.7283660474
A90: A | B90: 02 | C90: 02 | D90: 01 | E90: 004 | F90: 008 | I90: APARATOS MÉDICOS, INSTRUMENTOS ÓPTICOS Y DE PRECISIÓN, RELOJES | J90: Nación | K90: CSF | L90: 10 | M90: 44922000 | N90: 0 | O90: 44922000 | P90: 0 | Q90: 0 | R90: 0 | S90: 0 | T90: 0 | U90: 0 | V90: 0
A91: A | B91: 02 | C91: 02 | D91: 02 | I91: ADQUISICIÓN DE SERVICIOS | J91: Nación | K91: CSF | L91: 10 | M91: 61319690219 | N91: 5.821823402e+10 | O91: 3101456195 | P91: 0 | Q91: 4.374911642e+10 | R91: 2.277685035e+10 | S91: 2.248366436e+10 | T91: 2.236954315e+10 | U91: 0.7134595146 | V91: 0.3714443154
A92: A | B92: 02 | C92: 02 | D92: 02 | E92: 005 | I92: SERVICIOS DE LA CONSTRUCCIÓN | J92: Nación | K92: CSF | L92: 10 | M92: 2028297681 | N92: 2021677024 | O92: 6620657 | P92: 0 | Q92: 2021677024 | R92: 21677024 | S92: 21677024 | T92: 21677024 | U92: 0.9967358554 | V92: 0.01068729911
A93: A | B93: 02 | C93: 02 | D93: 02 | E93: 005 | F93: 004 | I93: SERVICIOS DE CONSTRUCCIÓN | J93: Nación | K93: CSF | L93: 10 | M93: 2028297681 | N93: 2021677024 | O93: 6620657 | P93: 0 | Q93: 2021677024 | R93: 21677024 | S93: 21677024 | T93: 21677024 | U93: 0.9967358554 | V93: 0.01068729911
A94: A | B94: 02 | C94: 02 | D94: 02 | E94: 006 | I94: SERVICIOS DE ALOJAMIENTO; SERVICIOS DE SUMINISTRO DE COMIDAS Y BEBIDAS; SERVICIOS DE TRANSPORTE; Y SERVICIOS DE DISTRIBUCIÓN DE ELECTRICIDAD, GAS Y AGUA | J94: Nación | K94: CSF | L94: 10 | M94: 6908059759 | N94: 5829520756 | O94: 1078539003 | P94: 0 | Q94: 4079995689 | R94: 2082502207 | S94: 2078978389 | T94: 2005910006 | U94: 0.5906138382 | V94: 0.3014597846
A95: A | B95: 02 | C95: 02 | D95: 02 | E95: 006 | F95: 003 | I95: ALOJAMIENTO; SERVICIOS DE SUMINISTROS DE COMIDAS Y BEBIDAS | J95: Nación | K95: CSF | L95: 10 | M95: 513015416 | N95: 477604232 | O95: 35411184 | P95: 0 | Q95: 371143825 | R95: 304710127 | S95: 304710127 | T95: 302220604 | U95: 0.7234555014 | V95: 0.5939590069
A96: A | B96: 02 | C96: 02 | D96: 02 | E96: 006 | F96: 004 | I96: SERVICIOS DE TRANSPORTE DE PASAJEROS | J96: Nación | K96: CSF | L96: 10 | M96: 2100494343 | N96: 2088444343 | O96: 12050000 | P96: 0 | Q96: 890162135 | R96: 763692352 | S96: 763392352 | T96: 692913492 | U96: 0.4237869709 | V96: 0.3635774381
A97: A | B97: 02 | C97: 02 | D97: 02 | E97: 006 | F97: 007 | I97: SERVICIOS DE APOYO AL TRANSPORTE | J97: Nación | K97: CSF | L97: 10 | M97: 216950000 | N97: 183232225 | O97: 33717775 | P97: 0 | Q97: 144485877 | R97: 86511801 | S97: 86215921 | T97: 86115921 | U97: =+IFERROR(Q97/M97,0) -> 0.6659869878 | V97: =+IFERROR(R97/M97,0) -> 0.3987637751
A98: A | B98: 02 | C98: 02 | D98: 02 | E98: 006 | F98: 008 | I98: SERVICIOS POSTALES Y DE MENSAJERÍA | J98: Nación | K98: CSF | L98: 10 | M98: 2762000000 | N98: 1964639956 | O98: 797360044 | P98: 0 | Q98: 1964617136 | R98: 222162198 | S98: 222162198 | T98: 222162198 | U98: 0.7113023664 | V98: 0.08043526358
A99: A | B99: 02 | C99: 02 | D99: 02 | E99: 006 | F99: 009 | I99: SERVICIOS DE DISTRIBUCIÓN DE ELECTRICIDAD, GAS Y AGUA (POR CUENTA PROPIA) | J99: Nación | K99: CSF | L99: 10 | M99: 1315600000 | N99: 1115600000 | O99: 200000000 | P99: 0 | Q99: 709586716 | R99: 705425729 | S99: 702497791 | T99: 702497791 | U99: 0.5393635725 | V99: 0.536200767
A100: A | B100: 02 | C100: 02 | D100: 02 | E100: 007 | I100: SERVICIOS FINANCIEROS Y SERVICIOS CONEXOS, SERVICIOS INMOBILIARIOS Y SERVICIOS DE LEASING | J100: Nación | K100: CSF | L100: 10 | M100: 2644236411 | N100: 2566121450 | O100: 78114960.76 | P100: 0 | Q100: 2240999530 | R100: 1514926447 | S100: 1514926447 | T100: 1514926447 | U100: 0.8475034686 | V100: 0.5729164157
A101: A | B101: 02 | C101: 02 | D101: 02 | E101: 007 | F101: 001 | I101: SERVICIOS FINANCIEROS Y SERVICIOS CONEXOS | J101: Nación | K101: CSF | L101: 10 | M101: 295000000 | N101: 278413616 | O101: 16586384 | P101: 0 | Q101: 277934816 | R101: 21200 | S101: 21200 | T101: 21200 | U101: 0.9421519186 | V101: 7.186440678e-05
A102: A | B102: 02 | C102: 02 | D102: 02 | E102: 007 | F102: 002 | I102: SERVICIOS INMOBILIARIOS | J102: Nación | K102: CSF | L102: 10 | M102: 1894153872 | N102: 1890877256 | O102: 3276615.76 | P102: 0 | Q102: 1599222295 | R102: 1187365495 | S102: 1187365495 | T102: 1187365495 | U102: 0.8442937602 | V102: 0.6268579931
A103: A | B103: 02 | C103: 02 | D103: 02 | E103: 007 | F103: 003 | I103: SERVICIOS DE ARRENDAMIENTO O ALQUILER SIN OPERARIO | J103: Nación | K103: CSF | L103: 10 | M103: 455082539 | N103: 396830578 | O103: 58251961 | P103: 0 | Q103: 363842419 | R103: 327539752 | S103: 327539752 | T103: 327539752 | U103: 0.7995086338 | V103: 0.7197370234
A104: A | B104: 02 | C104: 02 | D104: 02 | E104: 008 | I104: SERVICIOS PRESTADOS A LAS EMPRESAS Y SERVICIOS DE PRODUCCIÓN | J104: Nación | K104: CSF | L104: 10 | M104: 40409964475 | N104: 38586608887 | O104: 1823355588 | P104: 0 | Q104: 27581576494 | R104: 1.437039712e+10 | S104: 1.409281794e+10 | T104: 1.406498461e+10 | U104: 0.6825439431 | V104: 0.3556151882
A105: A | B105: 02 | C105: 02 | D105: 02 | E105: 008 | F105: 002 | I105: SERVICIOS JURÍDICOS Y CONTABLES | J105: Nación | K105: CSF | L105: 10 | M105: 11394887965 | N105: 10760359799 | O105: 634528166 | P105: 0 | Q105: 7589121132 | R105: 4693367787 | S105: 4686167787 | T105: 4667334454 | U105: 0.6660110354 | V105: 0.4118836273
A106: A | B106: 02 | C106: 02 | D106: 02 | E106: 008 | F106: 003 | I106: OTROS SERVICIOS PROFESIONALES, CIENTÍFICOS Y TÉCNICOS | J106: Nación | K106: CSF | L106: 10 | M106: 12260161359 | N106: 11746982169 | O106: 513179190 | P106: 0 | Q106: 7000984994 | R106: 4739066129 | S106: 4736066129 | T106: 4727066129 | U106: 0.5710353061 | V106: 0.3865419051
A107: A | B107: 02 | C107: 02 | D107: 02 | E107: 008 | F107: 004 | I107: SERVICIOS DE TELECOMUNICACIONES, TRANSMISIÓN Y SUMINISTRO DE INFORMACIÓN | J107: Nación | K107: CSF | L107: 10 | M107: 4903750000 | N107: 4653714315 | O107: 250035685 | P107: 0 | Q107: 3524362930 | R107: 1782730185 | S107: 1782730185 | T107: 1782730185 | U107: 0.7187077094 | V107: 0.3635442642
A108: A | B108: 02 | C108: 02 | D108: 02 | E108: 008 | F108: 005 | I108: SERVICIOS DE SOPORTE | J108: Nación | K108: CSF | L108: 10 | M108: 9487774868 | N108: 9101975390 | O108: 385799478 | P108: 0 | Q108: 8604645741 | R108: 2974570516 | S108: 2707191334 | T108: 2707191334 | U108: 0.9069192578 | V108: 0.313516136
A109: A | B109: 02 | C109: 02 | D109: 02 | E109: 008 | F109: 007 | I109: SERVICIOS DE MANTENIMIENTO, REPARACIÓN E INSTALACIÓN (EXCEPTO SERVICIOS DE CONSTRUCCIÓN) | J109: Nación | K109: CSF | L109: 10 | M109: 2363390283 | N109: 2323577214 | O109: 39813069 | P109: 0 | Q109: 862461697 | R109: 180662506 | S109: 180662506 | T109: 180662506 | U109: 0.3649256338 | V109: 0.07644209562
A110: A | B110: 02 | C110: 02 | D110: 02 | E110: 009 | I110: SERVICIOS PARA LA COMUNIDAD, SOCIALES Y PERSONALES | J110: Nación | K110: CSF | L110: 10 | M110: 6480880050 | N110: 6416904739 | O110: 63975311 | P110: 0 | Q110: 5264095053 | R110: 2860663644 | S110: 2860375264 | T110: 2860375264 | U110: 0.8122500359 | V110: 0.4414004922
A111: A | B111: 02 | C111: 02 | D111: 02 | E111: 009 | F111: 002 | I111: SERVICIOS DE EDUCACIÓN | J111: Nación | K111: CSF | L111: 10 | M111: 455000000 | N111: 455000000 | O111: 0 | P111: 0 | Q111: 316000000 | R111: 0 | S111: 0 | T111: 0 | U111: 0.6945054945 | V111: 0
A112: A | B112: 02 | C112: 02 | D112: 02 | E112: 009 | F112: 003 | I112: SERVICIOS PARA EL CUIDADO DE LA SALUD HUMANA Y SERVICIOS SOCIALES | J112: Nación | K112: CSF | L112: 10 | M112: 350000000 | N112: 349993689 | O112: 6311 | P112: 0 | Q112: 105243689 | R112: 40758000 | S112: 40758000 | T112: 40758000 | U112: 0.3006962543 | V112: 0.1164514286
A113: A | B113: 02 | C113: 02 | D113: 02 | E113: 009 | F113: 004 | I113: SERVICIOS DE ALCANTARILLADO, RECOLECCIÓN, TRATAMIENTO Y DISPOSICIÓN DE DESECHOS Y OTROS SERVICIOS DE SANEAMIENTO AMBIENTAL | J113: Nación | K113: CSF | L113: 10 | M113: 312355000 | N113: 302355000 | O113: 10000000 | P113: 0 | Q113: 143295314 | R113: 142439973 | S113: 142151593 | T113: 142151593 | U113: 0.4587578685 | V113: 0.4560195067
A114: A | B114: 02 | C114: 02 | D114: 02 | E114: 009 | F114: 007 | I114: OTROS SERVICIOS | J114: Nación | K114: CSF | L114: 10 | M114: 5363525050 | N114: 5309556050 | O114: 53969000 | P114: 0 | Q114: 4699556050 | R114: 2677465671 | S114: 2677465671 | T114: 2677465671 | U114: 0.8762066004 | V114: 0.499198875
A115: A | B115: 02 | C115: 02 | D115: 02 | E115: 010 | I115: VIÁTICOS DE LOS FUNCIONARIOS EN COMISIÓN | J115: Nación | K115: CSF | L115: 10 | M115: 2848251843 | N115: 2797401168 | O115: 50850675 | P115: 0 | Q115: 2560772631 | R115: 1926683908 | S115: 1914889296 | T115: 1901669798 | U115: 0.8990681906 | V115: 0.6764443645
A116: A | B116: 03 | I116: TRANSFERENCIAS CORRIENTES | J116: Nación | K116: CSF | L116: 10 | M116: 238045037859 | N116: 2.267208313e+11 | O116: 1.132420653e+10 | P116: 0 | Q116: 1.976786429e+11 | R116: 1.231571126e+11 | S116: 1.224662977e+11 | T116: 1.224513785e+11 | U116: 0.830425388 | V116: 0.5173689554
A117: A | B117: 03 | I117: TRANSFERENCIAS CORRIENTES | J117: Nación | K117: SSF | L117: 16 | M117: 153894590000 | N117: 93574224299 | O117: 60320365701 | P117: 0 | Q117: 55893799801 | R117: 5.488507976e+10 | S117: 5.432886187e+10 | T117: 5.431755953e+10 | U117: 0.3631953521 | V117: 0.3566407354
A118: A | B118: 03 | C118: 03 | I118: A ENTIDADES DEL GOBIERNO | J118: Nación | K118: CSF | L118: 10 | M118: 236324136080 | N118: 2.249999367e+11 | O118: 1.132419939e+10 | P118: 0 | Q118: 1.97010816e+11 | R118: 1.225621133e+11 | S118: 1.218772309e+11 | T118: 1.218623118e+11 | U118: 0.8336466147 | V118: 0.5186186874
A119: A | B119: 03 | C119: 03 | I119: A ENTIDADES DEL GOBIERNO | J119: Nación | K119: SSF | L119: 16 | M119: 153894590000 | N119: 93574224299 | O119: 60320365701 | P119: 0 | Q119: 55893799801 | R119: 5.488507976e+10 | S119: 5.432886187e+10 | T119: 5.431755953e+10 | U119: 0.3631953521 | V119: 0.3566407354
A120: A | B120: 03 | C120: 03 | D120: 01 | I120: A ÓRGANOS DEL PGN | J120: Nación | K120: CSF | L120: 10 | M120: 236324136080 | N120: 2.249999367e+11 | O120: 1.132419939e+10 | P120: 0 | Q120: 1.97010816e+11 | R120: 1.225621133e+11 | S120: 1.218772309e+11 | T120: 1.218623118e+11 | U120: 0.8336466147 | V120: 0.5186186874
A121: A | B121: 03 | C121: 03 | D121: 01 | I121: A ÓRGANOS DEL PGN | J121: Nación | K121: SSF | L121: 16 | M121: 153894590000 | N121: 93574224299 | O121: 60320365701 | P121: 0 | Q121: 55893799801 | R121: 5.488507976e+10 | S121: 5.432886187e+10 | T121: 5.431755953e+10 | U121: 0.3631953521 | V121: 0.3566407354
A122: A | B122: 03 | C122: 03 | D122: 01 | E122: 007 | I122: DEFENSORÍA PÚBLICA (LEY 24 DE 1992) | J122: Nación | K122: CSF | L122: 10 | M122: 235997136080 | N122: 2.246729407e+11 | O122: 1.132419536e+10 | P122: 0 | Q122: 1.967271923e+11 | R122: 1.22447667e+11 | S122: 1.217627847e+11 | T122: 1.217478655e+11 | U122: 0.8335999139 | V122: 0.5188523432
A123: A | B123: 03 | C123: 03 | D123: 01 | E123: 008 | I123: FONDO PARA LA DEFENSA DE LOS DERECHOS E INTERESES COLECTIVOS -LEY 472 DE 1998. | J123: Nación | K123: SSF | L123: 16 | M123: 153325000000 | N123: 93574224299 | O123: 59750775701 | P123: 0 | Q123: 55893799801 | R123: 5.488507976e+10 | S123: 5.432886187e+10 | T123: 5.431755953e+10 | U123: 0.3645445935 | V123: 0.357965627
A124: A | B124: 03 | C124: 03 | D124: 01 | E124: 061 | I124: FONDO ESPECIAL COMISIÓN NACIONAL DE BÚSQUEDA (ART. 18 LEY 971 DE 2005) | J124: Nación | K124: SSF | L124: 16 | M124: 569590000 | N124: 0 | O124: 569590000 | P124: 0 | Q124: 0 | R124: 0 | S124: 0 | T124: 0 | U124: 0 | V124: 0
A125: A | B125: 03 | C125: 03 | D125: 01 | E125: 068 | I125: COMISIÓN DE BÚSQUEDA DE PERSONAS DESAPARECIDAS LEY 589 DE 2000 | J125: Nación | K125: CSF | L125: 10 | M125: 327000000 | N125: 326995963 | O125: 4037 | P125: 0 | Q125: 283623677 | R125: 114446220 | S125: 114446220 | T125: 114446220 | U125: 0.8673506942 | V125: 0.3499884404
A126: A | B126: 03 | C126: 03 | D126: 01 | E126: 999 | I126: OTRAS TRANSFERENCIAS - DISTRIBUCIÓN PREVIO CONCEPTO DGPPN | J126: Nación | K126: CSF | L126: 10 | M126: 0 | N126: 0 | O126: 0 | P126: 0 | Q126: 0 | R126: 0 | S126: 0 | T126: 0 | U126: 0 | V126: 0
A127: A | B127: 03 | C127: 04 | I127: PRESTACIONES PARA CUBRIR RIESGOS SOCIALES | J127: Nación | K127: CSF | L127: 10 | M127: 1650685000 | N127: 1650685000 | O127: 0 | P127: 0 | Q127: 597766072 | R127: 524947136 | S127: 524947136 | T127: 524947136 | U127: 0.3621321282 | V127: 0.3180177538
A128: A | B128: 03 | C128: 04 | D128: 02 | I128: PRESTACIONES SOCIALES RELACIONADAS CON EL EMPLEO | J128: Nación | K128: CSF | L128: 10 | M128: 1650685000 | N128: 1650685000 | O128: 0 | P128: 0 | Q128: 597766072 | R128: 524947136 | S128: 524947136 | T128: 524947136 | U128: 0.3621321282 | V128: 0.3180177538
A129: A | B129: 03 | C129: 04 | D129: 02 | E129: 012 | I129: INCAPACIDADES Y LICENCIAS DE MATERNIDAD Y PATERNIDAD (NO DE PENSIONES) | J129: Nación | K129: CSF | L129: 10 | M129: 1650685000 | N129: 1650685000 | O129: 0 | P129: 0 | Q129: 597766072 | R129: 524947136 | S129: 524947136 | T129: 524947136 | U129: =+IFERROR(Q129/M129,0) -> 0.3621321282 | V129: =+IFERROR(R129/M129,0) -> 0.3180177538
A130: A | B130: 03 | C130: 04 | D130: 02 | E130: 012 | F130: 001 | I130: INCAPACIDADES (NO DE PENSIONES) | J130: Nación | K130: CSF | L130: 10 | M130: 850685000 | N130: 850685000 | O130: 0 | P130: 0 | Q130: 391803616 | R130: 327831777 | S130: 327831777 | T130: 327831777 | U130: 0.4605742619 | V130: 0.3853738775
A131: A | B131: 03 | C131: 04 | D131: 02 | E131: 012 | F131: 002 | I131: LICENCIAS DE MATERNIDAD Y PATERNIDAD (NO DE PENSIONES) | J131: Nación | K131: CSF | L131: 10 | M131: 800000000 | N131: 800000000 | O131: 0 | P131: 0 | Q131: 205962456 | R131: 197115359 | S131: 197115359 | T131: 197115359 | U131: 0.25745307 | V131: 0.2463941987
A132: A | B132: 03 | C132: 10 | I132: SENTENCIAS Y CONCILIACIONES | J132: Nación | K132: CSF | L132: 10 | M132: 70216779 | N132: 70209637 | O132: 7142 | P132: 0 | Q132: 70060837 | R132: 70052184 | S132: 64119644.5 | T132: 64119644.5 | U132: 0.9977791348 | V132: 0.9976559022
A133: A | B133: 03 | C133: 10 | D133: 01 | I133: FALLOS NACIONALES | J133: Nación | K133: CSF | L133: 10 | M133: 70216779 | N133: 70209637 | O133: 7142 | P133: 0 | Q133: 70060837 | R133: 70052184 | S133: 64119644.5 | T133: 64119644.5 | U133: 0.9977791348 | V133: 0.9976559022
A134: A | B134: 03 | C134: 10 | D134: 01 | E134: 001 | I134: SENTENCIAS | J134: Nación | K134: CSF | L134: 10 | M134: 70216779 | N134: 70209637 | O134: 7142 | P134: 0 | Q134: 70060837 | R134: 70052184 | S134: 64119644.5 | T134: 64119644.5 | U134: 0.9977791348 | V134: 0.9976559022
A135: A | B135: 08 | I135: GASTOS POR TRIBUTOS, MULTAS, SANCIONES E INTERESES DE MORA | J135: Nación | K135: CSF | L135: 10 | M135: 681109641 | N135: 681031488.3 | O135: 78152.71 | P135: 0 | Q135: 663942445.3 | R135: 663397445.3 | S135: 655642738.8 | T135: 655642738.8 | U135: 0.9747952537 | V135: 0.9739950888
A136: A | B136: 08 | I136: GASTOS POR TRIBUTOS, MULTAS, SANCIONES E INTERESES DE MORA | J136: Nación | K136: SSF | L136: 11 | M136: 1881077000 | N136: 0 | O136: 1881077000 | P136: 0 | Q136: 0 | R136: 0 | S136: 0 | T136: 0 | U136: 0 | V136: 0
A137: A | B137: 08 | C137: 01 | I137: IMPUESTOS | J137: Nación | K137: CSF | L137: 10 | M137: 485000000 | N137: 485000000 | O137: 0 | P137: 0 | Q137: 468589157 | R137: 468044157 | S137: 468044157 | T137: 468044157 | U137: 0.9661632103 | V137: 0.965039499
A138: A | B138: 08 | C138: 01 | D138: 02 | I138: IMPUESTOS TERRITORIALES | J138: Nación | K138: CSF | L138: 10 | M138: 485000000 | N138: 485000000 | O138: 0 | P138: 0 | Q138: 468589157 | R138: 468044157 | S138: 468044157 | T138: 468044157 | U138: 0.9661632103 | V138: 0.965039499
A139: A | B139: 08 | C139: 01 | D139: 02 | E139: 001 | I139: IMPUESTO PREDIAL Y SOBRETASA AMBIENTAL | J139: Nación | K139: CSF | L139: 10 | M139: 470000000 | N139: 470000000 | O139: 0 | P139: 0 | Q139: 454212622 | R139: 454212622 | S139: 454212622 | T139: 454212622 | U139: 0.966409834 | V139: 0.966409834
A140: A | B140: 08 | C140: 01 | D140: 02 | E140: 006 | I140: IMPUESTO SOBRE VEHÍCULOS AUTOMOTORES | J140: Nación | K140: CSF | L140: 10 | M140: 15000000 | N140: 15000000 | O140: 0 | P140: 0 | Q140: 14376535 | R140: 13831535 | S140: 13831535 | T140: 13831535 | U140: 0.9584356667 | V140: 0.9221023333
A141: A | B141: 08 | C141: 04 | I141: CONTRIBUCIONES | J141: Nación | K141: SSF | L141: 11 | M141: 1881077000 | N141: 0 | O141: 1881077000 | P141: 0 | Q141: 0 | R141: 0 | S141: 0 | T141: 0 | U141: 0 | V141: 0
A142: A | B142: 08 | C142: 04 | D142: 01 | I142: CUOTA DE FISCALIZACIÓN Y AUDITAJE | J142: Nación | K142: SSF | L142: 11 | M142: 1881077000 | N142: 0 | O142: 1881077000 | P142: 0 | Q142: 0 | R142: 0 | S142: 0 | T142: 0 | U142: 0 | V142: 0
A143: A | B143: 08 | C143: 05 | I143: MULTAS, SANCIONES E INTERESES DE MORA | J143: Nación | K143: CSF | L143: 10 | M143: 196109641 | N143: 196031488.3 | O143: 78152.71 | P143: 0 | Q143: 195353288.3 | R143: 195353288.3 | S143: 187598581.8 | T143: 187598581.8 | U143: 0.9961432151 | V143: 0.9961432151
A144: A | B144: 08 | C144: 05 | D144: 02 | I144: INTERESES DE MORA | J144: Nación | K144: CSF | L144: 10 | M144: 196109641 | N144: 196031488.3 | O144: 78152.71 | P144: 0 | Q144: 195353288.3 | R144: 195353288.3 | S144: 187598581.8 | T144: 187598581.8 | U144: 0.9961432151 | V144: 0.9961432151
A145: A | B145: 08 | C145: 05 | D145: 02 | E145: 003 | I145: SENTENCIAS | J145: Nación | K145: CSF | L145: 10 | M145: 196109641 | N145: 196031488.3 | O145: 78152.71 | P145: 0 | Q145: 195353288.3 | R145: 195353288.3 | S145: 187598581.8 | T145: 187598581.8 | U145: 0.9961432151 | V145: 0.9961432151
A146: B | I146: SERVICIO DE LA DEUDA PÚBLICA | J146: Nación | K146: CSF | L146: 11 | M146: 247291740 | N146: 0 | O146: 247291740 | P146: 0 | Q146: 0 | R146: 0 | S146: 0 | T146: 0 | U146: 0 | V146: 0
A147: B | B147: 10 | I147: SERVICIO DE LA DEUDA PÚBLICA INTERNA | J147: Nación | K147: CSF | L147: 11 | M147: 247291740 | N147: 0 | O147: 247291740 | P147: 0 | Q147: 0 | R147: 0 | S147: 0 | T147: 0 | U147: 0 | V147: 0
A148: B | B148: 10 | C148: 04 | I148: FONDO DE CONTINGENCIAS | J148: Nación | K148: CSF | L148: 11 | M148: 247291740 | N148: 0 | O148: 247291740 | P148: 0 | Q148: 0 | R148: 0 | S148: 0 | T148: 0 | U148: 0 | V148: 0
A149: B | B149: 10 | C149: 04 | D149: 01 | I149: APORTES AL FONDO DE CONTINGENCIAS | J149: Nación | K149: CSF | L149: 11 | M149: 247291740 | N149: 0 | O149: 247291740 | P149: 0 | Q149: 0 | R149: 0 | S149: 0 | T149: 0 | U149: 0 | V149: 0
A150: C | I150: INVERSION | J150: Nación | K150: CSF | L150: 11 | M150: 20000000000 | N150: 15862557887 | O150: 4137442113 | P150: 0 | Q150: 13218397445 | R150: 7671338974 | S150: 7649008298 | T150: 7602545115 | U150: 0.6609198723 | V150: 0.3835669487
A151: C | I151: INVERSION | J151: Nación | K151: CSF | L151: 13 | M151: 37735679763 | N151: 33702968306 | O151: 4032711457 | P151: 0 | Q151: 20565239500 | R151: 1.201759369e+10 | S151: 1.195476122e+10 | T151: 1.186815325e+10 | U151: 0.5449812917 | V151: 0.3184676614
A152: C | I152: INVERSION | J152: Nación | K152: CSF | L152: 15 | M152: 2640000000 | N152: 619650188 | O152: 2020349812 | P152: 0 | Q152: 619650188 | R152: 0 | S152: 0 | T152: 0 | U152: 0.2347159803 | V152: 0
A153: C | B153: 2502 | I153: PROMOCIÓN, PROTECCIÓN Y DEFENSA DE LOS DERECHOS HUMANOS Y EL DERECHO INTERNACIONAL HUMANITARIO | J153: Nación | K153: CSF | L153: 11 | M153: 15500000000 | N153: 15180276420 | O153: 319723580 | P153: 0 | Q153: 12706121245 | R153: 7542805641 | S153: 7520474965 | T153: 7474011782 | U153: 0.8197497577 | V153: 0.486632622
A154: C | B154: 2502 | I154: PROMOCIÓN, PROTECCIÓN Y DEFENSA DE LOS DERECHOS HUMANOS Y EL DERECHO INTERNACIONAL HUMANITARIO | J154: Nación | K154: CSF | L154: 13 | M154: 26019181301 | N154: 23702968306 | O154: 2316212995 | P154: 0 | Q154: 20565239500 | R154: 1.201759369e+10 | S154: 1.195476122e+10 | T154: 1.186815325e+10 | U154: 0.7903876476 | V154: 0.4618743975
A155: C | B155: 2502 | I155: PROMOCIÓN, PROTECCIÓN Y DEFENSA DE LOS DERECHOS HUMANOS Y EL DERECHO INTERNACIONAL HUMANITARIO | J155: Nación | K155: CSF | L155: 15 | M155: 2640000000 | N155: 619650188 | O155: 2020349812 | P155: 0 | Q155: 619650188 | R155: 0 | S155: 0 | T155: 0 | U155: 0.2347159803 | V155: 0
A156: C | B156: 2502 | C156: 1000 | I156: INTERSUBSECTORIAL GOBIERNO | J156: Nación | K156: CSF | L156: 11 | M156: 15500000000 | N156: 15180276420 | O156: 319723580 | P156: 0 | Q156: 12706121245 | R156: 7542805641 | S156: 7520474965 | T156: 7474011782 | U156: 0.8197497577 | V156: 0.486632622
A157: C | B157: 2502 | C157: 1000 | I157: INTERSUBSECTORIAL GOBIERNO | J157: Nación | K157: CSF | L157: 13 | M157: 26019181301 | N157: 23702968306 | O157: 2316212995 | P157: 0 | Q157: 20565239500 | R157: 1.201759369e+10 | S157: 1.195476122e+10 | T157: 1.186815325e+10 | U157: 0.7903876476 | V157: 0.4618743975
A158: C | B158: 2502 | C158: 1000 | I158: INTERSUBSECTORIAL GOBIERNO | J158: Nación | K158: CSF | L158: 15 | M158: 2640000000 | N158: 619650188 | O158: 2020349812 | P158: 0 | Q158: 619650188 | R158: 0 | S158: 0 | T158: 0 | U158: 0.2347159803 | V158: 0
A159: C | B159: 2502 | C159: 1000 | D159: 25 | I159: FORTALECIMIENTO DE LA ATENCIÓN, PROMOCIÓN, DIVULGACIÓN, PROTECCIÓN Y DEFENSA DE DERECHOS HUMANOS A LA POBLACIÓN Y GRUPOS DE INTERÉS EN EL TERRITORIO NACIONAL NACIONAL | J159: Nación | K159: CSF | L159: 11 | M159: 10500000000 | N159: 10429587265 | O159: 70412735 | P159: 0 | Q159: 9253283278 | R159: 5843216319 | S159: 5822030164 | T159: 5780217658 | U159: 0.8812650741 | V159: 0.5564967923
A160: C | B160: 2502 | C160: 1000 | D160: 25 | I160: FORTALECIMIENTO DE LA ATENCIÓN, PROMOCIÓN, DIVULGACIÓN, PROTECCIÓN Y DEFENSA DE DERECHOS HUMANOS A LA POBLACIÓN Y GRUPOS DE INTERÉS EN EL TERRITORIO NACIONAL NACIONAL | J160: Nación | K160: CSF | L160: 13 | M160: 10500000000 | N160: 9547250071 | O160: 952749929 | P160: 0 | Q160: 7610181062 | R160: 4045558135 | S160: 4028241922 | T160: 3992332719 | U160: 0.7247791488 | V160: 0.385291251
A161: C | B161: 2502 | C161: 1000 | D161: 25 | I161: FORTALECIMIENTO DE LA ATENCIÓN, PROMOCIÓN, DIVULGACIÓN, PROTECCIÓN Y DEFENSA DE DERECHOS HUMANOS A LA POBLACIÓN Y GRUPOS DE INTERÉS EN EL TERRITORIO NACIONAL NACIONAL | J161: Nación | K161: CSF | L161: 15 | M161: 2640000000 | N161: 619650188 | O161: 2020349812 | P161: 0 | Q161: 619650188 | R161: 0 | S161: 0 | T161: 0 | U161: =+IFERROR(Q161/M161,0) -> 0.2347159803 | V161: =+IFERROR(R161/M161,0) -> 0
A162: C | B162: 2502 | C162: 1000 | D162: 25 | E162: 0 | F162: 2502002 | I162: SERVICIO DE ASISTENCIA TÉCNICA PARA ATENCIÓN, ORIENTACIÓN Y ASESORÍA EN MATERIA DE DERECHOS HUMANOS, EL DERECHO INTERNACIONAL HUMANITARIO Y EN ESCENARIOS DE PAZ | J162: Nación | K162: CSF | L162: 11 | M162: 4335026770 | N162: 4279352770 | O162: 55674000.49 | P162: 0 | Q162: 3421381045 | R162: 2102100386 | S162: 2089564231 | T162: 2076045288 | U162: 0.7892410419 | V162: 0.4849105893
A163: C | B163: 2502 | C163: 1000 | D163: 25 | E163: 0 | F163: 2502003 | I163: SERVICIO DE EDUCACIÓN INFORMAL EN MATERIA DE DERECHOS HUMANOS Y DERECHO INTERNACIONAL HUMANITARIO | J163: Nación | K163: CSF | L163: 11 | M163: 1796418873 | N163: 1788880140 | O163: 7538733.48 | P163: 0 | Q163: 1626826307 | R163: 815212705.1 | S163: 815212705.1 | T163: 810412705.1 | U163: 0.9055940856 | V163: 0.4537987866
A164: C | B164: 2502 | C164: 1000 | D164: 25 | E164: 0 | F164: 2502004 | I164: SERVICIO DE DIVULGACIÓN DE LOS DERECHOS HUMANOS Y DEL DERECHO INTERNACIONAL HUMANITARIO DE LA POBLACIÓN | J164: Nación | K164: CSF | L164: 11 | M164: 655805936.2 | N164: 655805936 | O164: 0.17 | P164: 0 | Q164: 633805936 | R164: 347760796.1 | S164: 347760796.1 | T164: 347760796.1 | U164: 0.9664534903 | V164: 0.5302800369
A165: C | B165: 2502 | C165: 1000 | D165: 25 | E165: 0 | F165: 2502011 | I165: DOCUMENTOS DE SEGUIMIENTO | J165: Nación | K165: CSF | L165: 11 | M165: 2927069486 | N165: 2927069485 | O165: 0.85 | P165: 0 | Q165: 2796269990 | R165: 2103735761 | S165: 2095085761 | T165: 2079592198 | U165: 0.9553138398 | V165: 0.7187173968
A166: C | B166: 2502 | C166: 1000 | D166: 25 | E166: 0 | F166: 2502006 | I166: DOCUMENTOS DE INVESTIGACIÓN | J166: Nación | K166: CSF | L166: 11 | M166: 785678934 | N166: 778478934 | O166: 7200000.01 | P166: 0 | Q166: 775000000 | R166: 474406670.6 | S166: 474406670.6 | T166: 466406670.6 | U166: 0.9864080179 | V166: 0.6038174756
A167: C | B167: 2502 | C167: 1000 | D167: 25 | E167: 0 | F167: 2502006 | I167: DOCUMENTOS DE INVESTIGACIÓN | J167: Nación | K167: CSF | L167: 13 | M167: 985678934 | N167: 960868566 | O167: 24810368.01 | P167: 0 | Q167: 835973008 | R167: 576424807.7 | S167: 575335765.7 | T167: 575335765.7 | U167: 0.8481189758 | V167: 0.5847997637
A168: C | B168: 2502 | C168: 1000 | D168: 25 | E168: 0 | F168: 2502011 | I168: DOCUMENTOS DE SEGUIMIENTO | J168: Nación | K168: CSF | L168: 13 | M168: 3227069486 | N168: 3170565720 | O168: 56503765.85 | P168: 0 | Q168: 2243650500 | R168: 1254223340 | S168: 1250864626 | T168: 1238520473 | U168: 0.6952594327 | V168: 0.3886570603
A169: C | B169: 2502 | C169: 1000 | D169: 25 | E169: 0 | F169: 2502004 | I169: SERVICIO DE DIVULGACIÓN DE LOS DERECHOS HUMANOS Y DEL DERECHO INTERNACIONAL HUMANITARIO DE LA POBLACIÓN | J169: Nación | K169: CSF | L169: 13 | M169: 715805936.2 | N169: 665008936 | O169: 50797000.17 | P169: 0 | Q169: 555576482 | R169: 195997332 | S169: 195997332 | T169: 195997332 | U169: 0.7761551755 | V169: 0.2738135046
A170: C | B170: 2502 | C170: 1000 | D170: 25 | E170: 0 | F170: 2502003 | I170: SERVICIO DE EDUCACIÓN INFORMAL EN MATERIA DE DERECHOS HUMANOS Y DERECHO INTERNACIONAL HUMANITARIO | J170: Nación | K170: CSF | L170: 13 | M170: 1736418873 | N170: 1460763825 | O170: 275655048.5 | P170: 0 | Q170: 1249485503 | R170: 729488617 | S170: 729488617 | T170: 728741459 | U170: 0.7195760897 | V170: 0.4201109698
A171: C | B171: 2502 | C171: 1000 | D171: 25 | E171: 0 | F171: 2502002 | I171: SERVICIO DE ASISTENCIA TÉCNICA PARA ATENCIÓN, ORIENTACIÓN Y ASESORÍA EN MATERIA DE DERECHOS HUMANOS, EL DERECHO INTERNACIONAL HUMANITARIO Y EN ESCENARIOS DE PAZ | J171: Nación | K171: CSF | L171: 13 | M171: 3835026770 | N171: 3290043024 | O171: 544983746.5 | P171: 0 | Q171: 2725495569 | R171: 1289424039 | S171: 1276555582 | T171: 1253737690 | U171: 0.7106848875 | V171: 0.3362229565
A172: C | B172: 2502 | C172: 1000 | D172: 25 | E172: 0 | F172: 2502002 | I172: SERVICIO DE ASISTENCIA TÉCNICA PARA ATENCIÓN, ORIENTACIÓN Y ASESORÍA EN MATERIA DE DERECHOS HUMANOS, EL DERECHO INTERNACIONAL HUMANITARIO Y EN ESCENARIOS DE PAZ | J172: Nación | K172: CSF | L172: 15 | M172: 289949588 | N172: 0 | O172: 289949588 | P172: 0 | Q172: 0 | R172: 0 | S172: 0 | T172: 0 | U172: 0 | V172: 0
A173: C | B173: 2502 | C173: 1000 | D173: 25 | E173: 0 | F173: 2502003 | I173: SERVICIO DE EDUCACIÓN INFORMAL EN MATERIA DE DERECHOS HUMANOS Y DERECHO INTERNACIONAL HUMANITARIO | J173: Nación | K173: CSF | L173: 15 | M173: 871671031 | N173: 459033909 | O173: 412637122.1 | P173: 0 | Q173: 459033909 | R173: 0 | S173: 0 | T173: 0 | U173: 0.5266137025 | V173: 0
A174: C | B174: 2502 | C174: 1000 | D174: 25 | E174: 0 | F174: 2502004 | I174: SERVICIO DE DIVULGACIÓN DE LOS DERECHOS HUMANOS Y DEL DERECHO INTERNACIONAL HUMANITARIO DE LA POBLACIÓN | J174: Nación | K174: CSF | L174: 15 | M174: 564888349.7 | N174: 143616279 | O174: 421272070.7 | P174: 0 | Q174: 143616279 | R174: 0 | S174: 0 | T174: 0 | U174: 0.2542383448 | V174: 0
A175: C | B175: 2502 | C175: 1000 | D175: 25 | E175: 0 | F175: 2502011 | I175: DOCUMENTOS DE SEGUIMIENTO | J175: Nación | K175: CSF | L175: 15 | M175: 715948899.3 | N175: 0 | O175: 715948899.3 | P175: 0 | Q175: 0 | R175: 0 | S175: 0 | T175: 0 | U175: 0 | V175: 0
A176: C | B176: 2502 | C176: 1000 | D176: 25 | E176: 0 | F176: 2502006 | I176: DOCUMENTOS DE INVESTIGACIÓN | J176: Nación | K176: CSF | L176: 15 | M176: 197542132 | N176: 17000000 | O176: 180542132 | P176: 0 | Q176: 17000000 | R176: 0 | S176: 0 | T176: 0 | U176: 0.086057591 | V176: 0
A177: C | B177: 2502 | C177: 1000 | D177: 25 | E177: 0 | F177: 2502002 | G177: 02 | I177: ADQUISICIÓN DE BIENES Y SERVICIOS - SERVICIO DE ASISTENCIA TÉCNICA PARA ATENCIÓN, ORIENTACIÓN Y ASESORÍA EN MATERIA DE DERECHOS HUMANOS, EL DERECHO INTERNACIONAL HUMANITARIO Y EN ESCENARIOS DE PAZ - FORTALECIMIENTO DE LA ATENCIÓN, PROMOCIÓN, DIVULGAC | J177: Nación | K177: CSF | L177: 11 | M177: 4335026770 | N177: 4279352770 | O177: 55674000.49 | P177: 0 | Q177: 3421381045 | R177: 2102100386 | S177: 2089564231 | T177: 2076045288 | U177: 0.7892410419 | V177: 0.4849105893
A178: C | B178: 2502 | C178: 1000 | D178: 25 | E178: 0 | F178: 2502006 | G178: 02 | I178: ADQUISICIÓN DE BIENES Y SERVICIOS - DOCUMENTOS DE INVESTIGACIÓN - FORTALECIMIENTO DE LA ATENCIÓN, PROMOCIÓN, DIVULGACIÓN, PROTECCIÓN Y DEFENSA DE DERECHOS HUMANOS A LA POBLACIÓN Y GRUPOS DE INTERÉS EN EL TERRITORIO NACIONAL NACIONAL | J178: Nación | K178: CSF | L178: 11 | M178: 785678934 | N178: 778478934 | O178: 7200000.01 | P178: 0 | Q178: 775000000 | R178: 474406670.6 | S178: 474406670.6 | T178: 466406670.6 | U178: 0.9864080179 | V178: 0.6038174756
A179: C | B179: 2502 | C179: 1000 | D179: 25 | E179: 0 | F179: 2502003 | G179: 02 | I179: ADQUISICIÓN DE BIENES Y SERVICIOS - SERVICIO DE EDUCACIÓN INFORMAL EN MATERIA DE DERECHOS HUMANOS Y DERECHO INTERNACIONAL HUMANITARIO - FORTALECIMIENTO DE LA ATENCIÓN, PROMOCIÓN, DIVULGACIÓN, PROTECCIÓN Y DEFENSA DE DERECHOS HUMANOS A LA POBLACIÓN Y | J179: Nación | K179: CSF | L179: 11 | M179: 1796418873 | N179: 1788880140 | O179: 7538733.48 | P179: 0 | Q179: 1626826307 | R179: 815212705.1 | S179: 815212705.1 | T179: 810412705.1 | U179: 0.9055940856 | V179: 0.4537987866
A180: C | B180: 2502 | C180: 1000 | D180: 25 | E180: 0 | F180: 2502004 | G180: 02 | I180: ADQUISICIÓN DE BIENES Y SERVICIOS - SERVICIO DE DIVULGACIÓN DE LOS DERECHOS HUMANOS Y DEL DERECHO INTERNACIONAL HUMANITARIO DE LA POBLACIÓN - FORTALECIMIENTO DE LA ATENCIÓN, PROMOCIÓN, DIVULGACIÓN, PROTECCIÓN Y DEFENSA DE DERECHOS HUMANOS A LA POBLAC | J180: Nación | K180: CSF | L180: 11 | M180: 655805936.2 | N180: 655805936 | O180: 0.17 | P180: 0 | Q180: 633805936 | R180: 347760796.1 | S180: 347760796.1 | T180: 347760796.1 | U180: 0.9664534903 | V180: 0.5302800369
A181: C | B181: 2502 | C181: 1000 | D181: 25 | E181: 0 | F181: 2502011 | G181: 02 | I181: ADQUISICIÓN DE BIENES Y SERVICIOS - DOCUMENTOS DE SEGUIMIENTO - FORTALECIMIENTO DE LA ATENCIÓN, PROMOCIÓN, DIVULGACIÓN, PROTECCIÓN Y DEFENSA DE DERECHOS HUMANOS A LA POBLACIÓN Y GRUPOS DE INTERÉS EN EL TERRITORIO NACIONAL NACIONAL | J181: Nación | K181: CSF | L181: 11 | M181: 2927069486 | N181: 2927069485 | O181: 0.85 | P181: 0 | Q181: 2796269990 | R181: 2103735761 | S181: 2095085761 | T181: 2079592198 | U181: 0.9553138398 | V181: 0.7187173968
A182: C | B182: 2502 | C182: 1000 | D182: 25 | E182: 0 | F182: 2502011 | G182: 02 | I182: ADQUISICIÓN DE BIENES Y SERVICIOS - DOCUMENTOS DE SEGUIMIENTO - FORTALECIMIENTO DE LA ATENCIÓN, PROMOCIÓN, DIVULGACIÓN, PROTECCIÓN Y DEFENSA DE DERECHOS HUMANOS A LA POBLACIÓN Y GRUPOS DE INTERÉS EN EL TERRITORIO NACIONAL NACIONAL | J182: Nación | K182: CSF | L182: 13 | M182: 3227069486 | N182: 3170565720 | O182: 56503765.85 | P182: 0 | Q182: 2243650500 | R182: 1254223340 | S182: 1250864626 | T182: 1238520473 | U182: 0.6952594327 | V182: 0.3886570603
A183: C | B183: 2502 | C183: 1000 | D183: 25 | E183: 0 | F183: 2502004 | G183: 02 | I183: ADQUISICIÓN DE BIENES Y SERVICIOS - SERVICIO DE DIVULGACIÓN DE LOS DERECHOS HUMANOS Y DEL DERECHO INTERNACIONAL HUMANITARIO DE LA POBLACIÓN - FORTALECIMIENTO DE LA ATENCIÓN, PROMOCIÓN, DIVULGACIÓN, PROTECCIÓN Y DEFENSA DE DERECHOS HUMANOS A LA POBLAC | J183: Nación | K183: CSF | L183: 13 | M183: 715805936.2 | N183: 665008936 | O183: 50797000.17 | P183: 0 | Q183: 555576482 | R183: 195997332 | S183: 195997332 | T183: 195997332 | U183: 0.7761551755 | V183: 0.2738135046
A184: C | B184: 2502 | C184: 1000 | D184: 25 | E184: 0 | F184: 2502003 | G184: 02 | I184: ADQUISICIÓN DE BIENES Y SERVICIOS - SERVICIO DE EDUCACIÓN INFORMAL EN MATERIA DE DERECHOS HUMANOS Y DERECHO INTERNACIONAL HUMANITARIO - FORTALECIMIENTO DE LA ATENCIÓN, PROMOCIÓN, DIVULGACIÓN, PROTECCIÓN Y DEFENSA DE DERECHOS HUMANOS A LA POBLACIÓN Y | J184: Nación | K184: CSF | L184: 13 | M184: 1736418873 | N184: 1460763825 | O184: 275655048.5 | P184: 0 | Q184: 1249485503 | R184: 729488617 | S184: 729488617 | T184: 728741459 | U184: 0.7195760897 | V184: 0.4201109698
A185: C | B185: 2502 | C185: 1000 | D185: 25 | E185: 0 | F185: 2502006 | G185: 02 | I185: ADQUISICIÓN DE BIENES Y SERVICIOS - DOCUMENTOS DE INVESTIGACIÓN - FORTALECIMIENTO DE LA ATENCIÓN, PROMOCIÓN, DIVULGACIÓN, PROTECCIÓN Y DEFENSA DE DERECHOS HUMANOS A LA POBLACIÓN Y GRUPOS DE INTERÉS EN EL TERRITORIO NACIONAL NACIONAL | J185: Nación | K185: CSF | L185: 13 | M185: 985678934 | N185: 960868566 | O185: 24810368.01 | P185: 0 | Q185: 835973008 | R185: 576424807.7 | S185: 575335765.7 | T185: 575335765.7 | U185: 0.8481189758 | V185: 0.5847997637
A186: C | B186: 2502 | C186: 1000 | D186: 25 | E186: 0 | F186: 2502002 | G186: 02 | I186: ADQUISICIÓN DE BIENES Y SERVICIOS - SERVICIO DE ASISTENCIA TÉCNICA PARA ATENCIÓN, ORIENTACIÓN Y ASESORÍA EN MATERIA DE DERECHOS HUMANOS, EL DERECHO INTERNACIONAL HUMANITARIO Y EN ESCENARIOS DE PAZ - FORTALECIMIENTO DE LA ATENCIÓN, PROMOCIÓN, DIVULGAC | J186: Nación | K186: CSF | L186: 13 | M186: 3835026770 | N186: 3290043024 | O186: 544983746.5 | P186: 0 | Q186: 2725495569 | R186: 1289424039 | S186: 1276555582 | T186: 1253737690 | U186: 0.7106848875 | V186: 0.3362229565
A187: C | B187: 2502 | C187: 1000 | D187: 25 | E187: 0 | F187: 2502002 | G187: 02 | I187: ADQUISICIÓN DE BIENES Y SERVICIOS - SERVICIO DE ASISTENCIA TÉCNICA PARA ATENCIÓN, ORIENTACIÓN Y ASESORÍA EN MATERIA DE DERECHOS HUMANOS, EL DERECHO INTERNACIONAL HUMANITARIO Y EN ESCENARIOS DE PAZ - FORTALECIMIENTO DE LA ATENCIÓN, PROMOCIÓN, DIVULGAC | J187: Nación | K187: CSF | L187: 15 | M187: 289949588 | N187: 0 | O187: 289949588 | P187: 0 | Q187: 0 | R187: 0 | S187: 0 | T187: 0 | U187: 0 | V187: 0
A188: C | B188: 2502 | C188: 1000 | D188: 25 | E188: 0 | F188: 2502006 | G188: 02 | I188: ADQUISICIÓN DE BIENES Y SERVICIOS - DOCUMENTOS DE INVESTIGACIÓN - FORTALECIMIENTO DE LA ATENCIÓN, PROMOCIÓN, DIVULGACIÓN, PROTECCIÓN Y DEFENSA DE DERECHOS HUMANOS A LA POBLACIÓN Y GRUPOS DE INTERÉS EN EL TERRITORIO NACIONAL NACIONAL | J188: Nación | K188: CSF | L188: 15 | M188: 197542132 | N188: 17000000 | O188: 180542132 | P188: 0 | Q188: 17000000 | R188: 0 | S188: 0 | T188: 0 | U188: 0.086057591 | V188: 0
A189: C | B189: 2502 | C189: 1000 | D189: 25 | E189: 0 | F189: 2502003 | G189: 02 | I189: ADQUISICIÓN DE BIENES Y SERVICIOS - SERVICIO DE EDUCACIÓN INFORMAL EN MATERIA DE DERECHOS HUMANOS Y DERECHO INTERNACIONAL HUMANITARIO - FORTALECIMIENTO DE LA ATENCIÓN, PROMOCIÓN, DIVULGACIÓN, PROTECCIÓN Y DEFENSA DE DERECHOS HUMANOS A LA POBLACIÓN Y | J189: Nación | K189: CSF | L189: 15 | M189: 871671031 | N189: 459033909 | O189: 412637122.1 | P189: 0 | Q189: 459033909 | R189: 0 | S189: 0 | T189: 0 | U189: 0.5266137025 | V189: 0
A190: C | B190: 2502 | C190: 1000 | D190: 25 | E190: 0 | F190: 2502004 | G190: 02 | I190: ADQUISICIÓN DE BIENES Y SERVICIOS - SERVICIO DE DIVULGACIÓN DE LOS DERECHOS HUMANOS Y DEL DERECHO INTERNACIONAL HUMANITARIO DE LA POBLACIÓN - FORTALECIMIENTO DE LA ATENCIÓN, PROMOCIÓN, DIVULGACIÓN, PROTECCIÓN Y DEFENSA DE DERECHOS HUMANOS A LA POBLAC | J190: Nación | K190: CSF | L190: 15 | M190: 564888349.7 | N190: 143616279 | O190: 421272070.7 | P190: 0 | Q190: 143616279 | R190: 0 | S190: 0 | T190: 0 | U190: 0.2542383448 | V190: 0
A191: C | B191: 2502 | C191: 1000 | D191: 25 | E191: 0 | F191: 2502011 | G191: 02 | I191: ADQUISICIÓN DE BIENES Y SERVICIOS - DOCUMENTOS DE SEGUIMIENTO - FORTALECIMIENTO DE LA ATENCIÓN, PROMOCIÓN, DIVULGACIÓN, PROTECCIÓN Y DEFENSA DE DERECHOS HUMANOS A LA POBLACIÓN Y GRUPOS DE INTERÉS EN EL TERRITORIO NACIONAL NACIONAL | J191: Nación | K191: CSF | L191: 15 | M191: 715948899.3 | N191: 0 | O191: 715948899.3 | P191: 0 | Q191: 0 | R191: 0 | S191: 0 | T191: 0 | U191: 0 | V191: 0
A192: C | B192: 2502 | C192: 1000 | D192: 25 | E192: 0 | I192: FORTALECIMIENTO DE LA ATENCIÓN, PROMOCIÓN, DIVULGACIÓN, PROTECCIÓN Y DEFENSA DE DERECHOS HUMANOS A LA POBLACIÓN Y GRUPOS DE INTERÉS EN EL TERRITORIO NACIONAL NACIONAL | J192: Nación | K192: CSF | L192: 11 | M192: 10500000000 | N192: 10429587265 | O192: 70412735 | P192: 0 | Q192: 9253283278 | R192: 5843216319 | S192: 5822030164 | T192: 5780217658 | U192: 0.8812650741 | V192: 0.5564967923
A193: C | B193: 2502 | C193: 1000 | D193: 25 | E193: 0 | I193: FORTALECIMIENTO DE LA ATENCIÓN, PROMOCIÓN, DIVULGACIÓN, PROTECCIÓN Y DEFENSA DE DERECHOS HUMANOS A LA POBLACIÓN Y GRUPOS DE INTERÉS EN EL TERRITORIO NACIONAL NACIONAL | J193: Nación | K193: CSF | L193: 13 | M193: 10500000000 | N193: 9547250071 | O193: 952749929 | P193: 0 | Q193: 7610181062 | R193: 4045558135 | S193: 4028241922 | T193: 3992332719 | U193: =+IFERROR(Q193/M193,0) -> 0.7247791488 | V193: =+IFERROR(R193/M193,0) -> 0.385291251
A194: C | B194: 2502 | C194: 1000 | D194: 25 | E194: 0 | I194: FORTALECIMIENTO DE LA ATENCIÓN, PROMOCIÓN, DIVULGACIÓN, PROTECCIÓN Y DEFENSA DE DERECHOS HUMANOS A LA POBLACIÓN Y GRUPOS DE INTERÉS EN EL TERRITORIO NACIONAL NACIONAL | J194: Nación | K194: CSF | L194: 15 | M194: 2640000000 | N194: 619650188 | O194: 2020349812 | P194: 0 | Q194: 619650188 | R194: 0 | S194: 0 | T194: 0 | U194: 0.2347159803 | V194: 0
A195: C | B195: 2502 | C195: 1000 | D195: 27 | E195: 0 | I195: CONTRIBUCION EN LA CONSTRUCCION DE CIUDADANIA DE LA VICTIMAS DEL CONFLICTO ARMADO NACIONAL | J195: Nación | K195: CSF | L195: 11 | M195: 5000000000 | N195: 4750689155 | O195: 249310845 | P195: 0 | Q195: 3452837967 | R195: 1699589322 | S195: 1698444801 | T195: 1693794124 | U195: 0.6905675934 | V195: 0.3399178645
A196: C | B196: 2502 | C196: 1000 | D196: 27 | E196: 0 | F196: 2502001 | I196: SERVICIO DE ADVERTENCIA Y SEGUIMIENTO A LOS RIESGOS DE VULNERACIÓN DE LOS DERECHOS HUMANOS, EL DERECHO INTERNACIONAL HUMANITARIO Y EN LOS ESCENARIOS DE PAZ | J196: Nación | K196: CSF | L196: 11 | M196: 1699633877 | N196: 1528332948 | O196: 171300929.4 | P196: 0 | Q196: 759997438 | R196: 432109699.3 | S196: 432109699.3 | T196: 430709699.3 | U196: 0.4471536183 | V196: 0.2542369301
A197: C | B197: 2502 | C197: 1000 | D197: 27 | E197: 0 | F197: 2502002 | I197: SERVICIO DE ASISTENCIA TÉCNICA PARA ATENCIÓN, ORIENTACIÓN Y ASESORÍA EN MATERIA DE DERECHOS HUMANOS, EL DERECHO INTERNACIONAL HUMANITARIO Y EN ESCENARIOS DE PAZ | J197: Nación | K197: CSF | L197: 11 | M197: 2196579406 | N197: 2196579406 | O197: 0.3 | P197: 0 | Q197: 2091130924 | R197: 1054752151 | S197: 1053607630 | T197: 1051379488 | U197: 0.9519942316 | V197: 0.4801793862
A198: C | B198: 2502 | C198: 1000 | D198: 27 | E198: 0 | F198: 2502003 | I198: SERVICIO DE EDUCACIÓN INFORMAL EN MATERIA DE DERECHOS HUMANOS Y DERECHO INTERNACIONAL HUMANITARIO | J198: Nación | K198: CSF | L198: 11 | M198: 1103786716 | N198: 1025776801 | O198: 78009915.33 | P198: 0 | Q198: 601709605 | R198: 212727472 | S198: 212727472 | T198: 211704937 | U198: 0.5451321311 | V198: 0.1927251604
A199: C | B199: 2502 | C199: 1000 | D199: 27 | E199: 0 | F199: 2502003 | I199: SERVICIO DE EDUCACIÓN INFORMAL EN MATERIA DE DERECHOS HUMANOS Y DERECHO INTERNACIONAL HUMANITARIO | J199: Nación | K199: CSF | L199: 13 | M199: 3025973234 | N199: 2349589072 | O199: 676384161.7 | P199: 0 | Q199: 1968312660 | R199: 912517075 | S199: 912517075 | T199: 902191047 | U199: 0.6504725944 | V199: 0.3015615158
A200: C | B200: 2502 | C200: 1000 | D200: 27 | E200: 0 | F200: 2502002 | I200: SERVICIO DE ASISTENCIA TÉCNICA PARA ATENCIÓN, ORIENTACIÓN Y ASESORÍA EN MATERIA DE DERECHOS HUMANOS, EL DERECHO INTERNACIONAL HUMANITARIO Y EN ESCENARIOS DE PAZ | J200: Nación | K200: CSF | L200: 13 | M200: 7217822810 | N200: 6869080693 | O200: 348742116.7 | P200: 0 | Q200: 6155140413 | R200: 3982238719 | S200: 3946290807 | T200: 3915580923 | U200: 0.8527696752 | V200: 0.5517229813
A201: C | B201: 2502 | C201: 1000 | D201: 27 | E201: 0 | F201: 2502001 | I201: SERVICIO DE ADVERTENCIA Y SEGUIMIENTO A LOS RIESGOS DE VULNERACIÓN DE LOS DERECHOS HUMANOS, EL DERECHO INTERNACIONAL HUMANITARIO Y EN LOS ESCENARIOS DE PAZ | J201: Nación | K201: CSF | L201: 13 | M201: 5275385258 | N201: 4937048470 | O201: 338336787.6 | P201: 0 | Q201: 4831605365 | R201: 3077279757 | S201: 3067711416 | T201: 3058048557 | U201: 0.9158772543 | V201: 0.5833279669
A202: C | B202: 2502 | C202: 1000 | D202: 27 | E202: 0 | I202: CONTRIBUCION EN LA CONSTRUCCION DE CIUDADANIA DE LA VICTIMAS DEL CONFLICTO ARMADO NACIONAL | J202: Nación | K202: CSF | L202: 13 | M202: 15519181301 | N202: 14155718235 | O202: 1363463066 | P202: 0 | Q202: 12955058438 | R202: 7972035551 | S202: 7926519298 | T202: 7875820527 | U202: 0.8347771823 | V202: 0.5136891822
A203: C | B203: 2502 | C203: 1000 | D203: 27 | E203: 0 | F203: 2502001 | G203: 02 | I203: ADQUISICIÓN DE BIENES Y SERVICIOS - SERVICIO DE ADVERTENCIA Y SEGUIMIENTO A LOS RIESGOS DE VULNERACIÓN DE LOS DERECHOS HUMANOS, EL DERECHO INTERNACIONAL HUMANITARIO Y EN LOS ESCENARIOS DE PAZ - CONTRIBUCION EN LA CONSTRUCCION DE CIUDADANIA DE LA VI | J203: Nación | K203: CSF | L203: 11 | M203: 1699633877 | N203: 1528332948 | O203: 171300929.4 | P203: 0 | Q203: 759997438 | R203: 432109699.3 | S203: 432109699.3 | T203: 430709699.3 | U203: 0.4471536183 | V203: 0.2542369301
A204: C | B204: 2502 | C204: 1000 | D204: 27 | E204: 0 | F204: 2502002 | G204: 02 | I204: ADQUISICIÓN DE BIENES Y SERVICIOS - SERVICIO DE ASISTENCIA TÉCNICA PARA ATENCIÓN, ORIENTACIÓN Y ASESORÍA EN MATERIA DE DERECHOS HUMANOS, EL DERECHO INTERNACIONAL HUMANITARIO Y EN ESCENARIOS DE PAZ - CONTRIBUCION EN LA CONSTRUCCION DE CIUDADANIA DE | J204: Nación | K204: CSF | L204: 11 | M204: 2196579406 | N204: 2196579406 | O204: 0.3 | P204: 0 | Q204: 2091130924 | R204: 1054752151 | S204: 1053607630 | T204: 1051379488 | U204: 0.9519942316 | V204: 0.4801793862
A205: C | B205: 2502 | C205: 1000 | D205: 27 | E205: 0 | F205: 2502003 | G205: 02 | I205: ADQUISICIÓN DE BIENES Y SERVICIOS - SERVICIO DE EDUCACIÓN INFORMAL EN MATERIA DE DERECHOS HUMANOS Y DERECHO INTERNACIONAL HUMANITARIO - CONTRIBUCION EN LA CONSTRUCCION DE CIUDADANIA DE LA VICTIMAS DEL CONFLICTO ARMADO NACIONAL | J205: Nación | K205: CSF | L205: 11 | M205: 1103786716 | N205: 1025776801 | O205: 78009915.33 | P205: 0 | Q205: 601709605 | R205: 212727472 | S205: 212727472 | T205: 211704937 | U205: 0.5451321311 | V205: 0.1927251604
... 56 more rows
